[Event "Titled Tuesday Blitz October 31 Late 2023"]
[White "Hamitevici, Vladimir"]
[Black "Oparin, Grigoriy"]
[WhiteFideId "13902393"]
[BlackFideId "24125890"]
[WhiteElo "2716"]
[BlackElo "2966"]
[Result "0-1"]
[Round "5"]
[TimeControl "180+1"]
[Date "2023.10.31"]
[WhiteClock "0:00:08"]
[BlackClock "0:00:09"]
[Board "18"]

1. a3 {[%clk 0:02:59]}  Na6 {[%clk 0:02:50]} 2. d4 {[%clk 0:02:58]}  d5 {[%clk 0:02:46]} 3. Nf3 {[%clk 0:02:57]}  Nf6 {[%clk 0:02:43]} 4. e3 {[%clk 0:02:56]}  c6 {[%clk 0:02:42]} 5. b3 {[%clk 0:02:48]}  Bf5 {[%clk 0:02:42]} 6. Nbd2 {[%clk 0:02:44]}  e6 {[%clk 0:02:42]} 7. Bb2 {[%clk 0:02:43]}  Bd6 {[%clk 0:02:42]} 8. Bd3 {[%clk 0:02:31]}  Bg6 {[%clk 0:02:40]} 9. Qe2 {[%clk 0:02:26]}  Nc7 {[%clk 0:02:32]} 10. e4 {[%clk 0:02:22]}  dxe4 {[%clk 0:02:32]} 11. Nxe4 {[%clk 0:02:23]}  Nxe4 {[%clk 0:02:32]} 12. Bxe4 {[%clk 0:02:24]}  Nd5 {[%clk 0:02:28]} 13. O-O {[%clk 0:02:10]}  a5 {[%clk 0:02:28]} 14. c4 {[%clk 0:02:09]}  Nf6 {[%clk 0:02:28]} 15. Bc2 {[%clk 0:02:02]}  O-O {[%clk 0:02:26]} 16. Rfd1 {[%clk 0:02:01]}  Re8 {[%clk 0:02:24]} 17. Ne5 {[%clk 0:02:00]}  Bxc2 {[%clk 0:02:22]} 18. Qxc2 {[%clk 0:02:00]}  Nd7 {[%clk 0:02:20]} 19. f4 {[%clk 0:01:54]}  Qe7 {[%clk 0:02:16]} 20. Rd3 {[%clk 0:01:50]}  Rac8 {[%clk 0:02:12]} 21. Rh3 {[%clk 0:01:47]}  f5 {[%clk 0:02:11]} 22. Kh1 {[%clk 0:01:27]}  Nf6 {[%clk 0:02:10]} 23. Re1 {[%clk 0:00:51]}  Bxa3 {[%clk 0:02:05]} 24. Bxa3 {[%clk 0:00:47]}  Qxa3 {[%clk 0:02:06]} 25. g4 {[%clk 0:00:47]}  Ne4 {[%clk 0:01:55]} 26. Rxe4 {[%clk 0:00:32]}  fxe4 {[%clk 0:01:56]} 27. Qxe4 {[%clk 0:00:33]}  Qc1+ {[%clk 0:01:54]} 28. Kg2 {[%clk 0:00:34]}  Qd2+ {[%clk 0:01:37]} 29. Kg1 {[%clk 0:00:31]}  Qd1+ {[%clk 0:01:08]} 30. Kg2 {[%clk 0:00:30]}  Qd2+ {[%clk 0:00:46]} 31. Kg1 {[%clk 0:00:30]}  Rc7 {[%clk 0:00:29]} 32. Qxh7+ {[%clk 0:00:23]}  Kf8 {[%clk 0:00:29]} 33. Qh8+ {[%clk 0:00:11]}  Ke7 {[%clk 0:00:29]} 34. Qxg7+ {[%clk 0:00:11]}  Kd8 {[%clk 0:00:30]} 35. Nf7+ {[%clk 0:00:10]}  Kc8 {[%clk 0:00:23]} 36. Rh7 {[%clk 0:00:09]}  Kb8 {[%clk 0:00:22]} 37. Qe5 {[%clk 0:00:09]}  Qd1+ {[%clk 0:00:19]} 38. Kf2 {[%clk 0:00:08]}  Qd2+ {[%clk 0:00:16]} 39. Kg3 {[%clk 0:00:09]}  Re7 {[%clk 0:00:16]} 40. Rh8+ {[%clk 0:00:07]}  Ka7 {[%clk 0:00:16]} 41. Nd6 {[%clk 0:00:07]}  b6 {[%clk 0:00:11]} 42. Nc8+ {[%clk 0:00:07]}  Rxc8 {[%clk 0:00:11]} 43. Rxc8 {[%clk 0:00:08]}  Rb7 {[%clk 0:00:10]} 44. Rxc6 {[%clk 0:00:06]}  Qc3+ {[%clk 0:00:11]} 45. Kh4 {[%clk 0:00:06]}  Qxb3 {[%clk 0:00:11]} 46. Qxe6 {[%clk 0:00:05]}  Qb2 {[%clk 0:00:11]} 47. d5 {[%clk 0:00:05]}  Qxh2+ {[%clk 0:00:11]} 48. Kg5 {[%clk 0:00:06]}  Rg7+ {[%clk 0:00:11]} 49. Kf5 {[%clk 0:00:07]}  Qh7+ {[%clk 0:00:11]} 50. Ke5 {[%clk 0:00:06]}  Re7 {[%clk 0:00:11]} 51. f5 {[%clk 0:00:05]}  Qg7+ {[%clk 0:00:11]} 52. Kd6 {[%clk 0:00:04]}  Rxe6+ {[%clk 0:00:11]} 53. fxe6 {[%clk 0:00:05]}  Qxg4 {[%clk 0:00:10]} 54. e7 {[%clk 0:00:05]}  Qf4+ {[%clk 0:00:10]} 55. Kd7 {[%clk 0:00:06]}  Qf5+ {[%clk 0:00:11]} 56. Re6 {[%clk 0:00:06]}  Qf7 {[%clk 0:00:10]} 57. Kd8 {[%clk 0:00:07]}  Kb7 {[%clk 0:00:09]} 58. e8=Q {[%clk 0:00:08]}  Qc7# {[%clk 0:00:09]} 0-1


[Site "https://www.chess.com"]

[Event "Titled Tuesday Blitz October 31 Late 2023"]
[White "Burke, Carol Ann"]
[Black "Daneshvar, Bardiya"]
[WhiteFideId "11104643"]
[BlackFideId "12576468"]
[WhiteElo "2712"]
[BlackElo "2947"]
[Result "0-1"]
[Round "5"]
[TimeControl "180+1"]
[Date "2023.10.31"]
[WhiteClock "0:00:00"]
[BlackClock "0:02:06"]
[Board "19"]

1. d4 {[%clk 0:03:00]}  g6 {[%clk 0:03:00]} 2. c4 {[%clk 0:02:58]}  Bg7 {[%clk 0:03:00]} 3. e4 {[%clk 0:02:56]}  c5 {[%clk 0:03:00]} 4. d5 {[%clk 0:02:56]}  d6 {[%clk 0:03:00]} 5. Nc3 {[%clk 0:02:56]}  Bxc3+ {[%clk 0:03:00]} 6. bxc3 {[%clk 0:02:56]}  Nf6 {[%clk 0:03:01]} 7. f3 {[%clk 0:02:52]}  e5 {[%clk 0:03:01]} 8. h4 {[%clk 0:02:42]}  Kd7 {[%clk 0:02:59]} 9. Bh6 {[%clk 0:02:25]}  Kc7 {[%clk 0:02:57]} 10. g4 {[%clk 0:02:21]}  Nbd7 {[%clk 0:02:55]} 11. Ne2 {[%clk 0:02:01]}  b6 {[%clk 0:02:54]} 12. a4 {[%clk 0:01:56]}  a5 {[%clk 0:02:51]} 13. Ng3 {[%clk 0:01:53]}  Qe7 {[%clk 0:02:51]} 14. Bd3 {[%clk 0:01:52]}  Bb7 {[%clk 0:02:51]} 15. Nf1 {[%clk 0:01:51]}  Rag8 {[%clk 0:02:51]} 16. Ne3 {[%clk 0:01:48]}  Ne8 {[%clk 0:02:52]} 17. Nc2 {[%clk 0:01:46]}  Bc8 {[%clk 0:02:51]} 18. Rb1 {[%clk 0:01:45]}  f6 {[%clk 0:02:48]} 19. Qc1 {[%clk 0:01:18]}  Ba6 {[%clk 0:02:48]} 20. Ke2 {[%clk 0:01:03]}  Kb7 {[%clk 0:02:47]} 21. Qd2 {[%clk 0:01:01]}  Nc7 {[%clk 0:02:47]} 22. Rbg1 {[%clk 0:01:01]}  Ka7 {[%clk 0:02:48]} 23. Kd1 {[%clk 0:00:58]}  Qe8 {[%clk 0:02:47]} 24. Ne3 {[%clk 0:00:53]}  Nb8 {[%clk 0:02:41]} 25. Bc2 {[%clk 0:00:53]}  Bc8 {[%clk 0:02:41]} 26. Bb3 {[%clk 0:00:52]}  Bd7 {[%clk 0:02:41]} 27. Qc2 {[%clk 0:00:52]}  Qf7 {[%clk 0:02:39]} 28. Ke2 {[%clk 0:00:49]}  Ne8 {[%clk 0:02:38]} 29. Qd1 {[%clk 0:00:45]}  f5 {[%clk 0:02:39]} 30. gxf5 {[%clk 0:00:41]}  gxf5 {[%clk 0:02:38]} 31. Rxg8 {[%clk 0:00:32]}  Rxg8 {[%clk 0:02:39]} 32. Rg1 {[%clk 0:00:32]}  f4 {[%clk 0:02:39]} 33. Nf5 {[%clk 0:00:18]}  Rg6 {[%clk 0:02:24]} 34. Bg5 {[%clk 0:00:14]}  Ng7 {[%clk 0:02:17]} 35. Nh6 {[%clk 0:00:09]}  Qe8 {[%clk 0:02:16]} 36. Ng4 {[%clk 0:00:05]}  Nh5 {[%clk 0:02:16]} 37. Nh6 {[%clk 0:00:05]}  Qf8 {[%clk 0:02:14]} 38. Nf5 {[%clk 0:00:04]}  h6 {[%clk 0:02:11]} 39. Bxh6 {[%clk 0:00:04]}  Rxh6 {[%clk 0:02:10]} 40. Nxh6 {[%clk 0:00:04]}  Qxh6 {[%clk 0:02:10]} 41. Rg5 {[%clk 0:00:03]}  Ng3+ {[%clk 0:02:10]} 42. Kd3 {[%clk 0:00:04]}  Qxh4 {[%clk 0:02:11]} 43. Rg7 {[%clk 0:00:04]}  Qh8 {[%clk 0:02:09]} 44. Rg5 {[%clk 0:00:03]}  Qf6 {[%clk 0:02:09]} 45. Rg8 {[%clk 0:00:03]}  Qf7 {[%clk 0:02:08]} 46. Rg5 {[%clk 0:00:03]}  Qh7 {[%clk 0:02:06]} 47. Qg1 {[%clk 0:00:02]}  Be8 {[%clk 0:02:06]} 48. Rg4 {[%clk 0:00:02]}  Nd7 {[%clk 0:02:06]} 49. Rg5 {[%clk 0:00:00]}  Nf6 {[%clk 0:02:06]} 0-1


[Site "https://www.chess.com"]

[Event "Titled Tuesday Blitz October 31 Late 2023"]
[White "Zhigalko, Sergei"]
[Black "Leiva, Gianmarco"]
[WhiteFideId "13502956"]
[BlackFideId "3804399"]
[WhiteElo "2907"]
[BlackElo "2692"]
[Result "1-0"]
[Round "5"]
[TimeControl "180+1"]
[Date "2023.10.31"]
[WhiteClock "0:00:06"]
[BlackClock "0:00:01"]
[Board "21"]

1. e4 {[%clk 0:03:00]}  c5 {[%clk 0:02:48]} 2. Nf3 {[%clk 0:03:00]}  d6 {[%clk 0:02:46]} 3. d4 {[%clk 0:03:01]}  cxd4 {[%clk 0:02:43]} 4. Qxd4 {[%clk 0:03:02]}  Nf6 {[%clk 0:02:34]} 5. Nc3 {[%clk 0:03:02]}  e5 {[%clk 0:02:29]} 6. Bb5+ {[%clk 0:03:02]}  Nbd7 {[%clk 0:02:27]} 7. Qd3 {[%clk 0:03:00]}  h6 {[%clk 0:02:24]} 8. O-O {[%clk 0:02:53]}  Be7 {[%clk 0:02:22]} 9. Be3 {[%clk 0:02:40]}  O-O {[%clk 0:02:11]} 10. Bc4 {[%clk 0:02:36]}  a6 {[%clk 0:02:08]} 11. a4 {[%clk 0:02:35]}  Qc7 {[%clk 0:02:07]} 12. a5 {[%clk 0:02:30]}  Nc5 {[%clk 0:02:03]} 13. Bxc5 {[%clk 0:02:27]}  Qxc5 {[%clk 0:02:04]} 14. Nd5 {[%clk 0:02:24]}  Nxd5 {[%clk 0:01:47]} 15. Bxd5 {[%clk 0:02:25]}  Be6 {[%clk 0:01:36]} 16. b4 {[%clk 0:01:58]}  Qc7 {[%clk 0:01:27]} 17. c4 {[%clk 0:01:35]}  Rfc8 {[%clk 0:01:04]} 18. Rfc1 {[%clk 0:01:29]}  Rab8 {[%clk 0:01:02]} 19. g3 {[%clk 0:01:03]}  b5 {[%clk 0:00:43]} 20. axb6 {[%clk 0:00:38]}  Rxb6 {[%clk 0:00:31]} 21. Ra4 {[%clk 0:00:23]}  Rcb8 {[%clk 0:00:21]} 22. c5 {[%clk 0:00:17]}  Rxb4 {[%clk 0:00:19]} 23. Rxb4 {[%clk 0:00:16]}  Rxb4 {[%clk 0:00:19]} 24. c6 {[%clk 0:00:17]}  Bxd5 {[%clk 0:00:13]} 25. exd5 {[%clk 0:00:17]}  e4 {[%clk 0:00:11]} 26. Qc3 {[%clk 0:00:05]}  a5 {[%clk 0:00:07]} 27. Nd2 {[%clk 0:00:03]}  f5 {[%clk 0:00:07]} 28. Nc4 {[%clk 0:00:03]}  Bf6 {[%clk 0:00:06]} 29. Qa3 {[%clk 0:00:03]}  Bd4 {[%clk 0:00:02]} 30. Qxa5 {[%clk 0:00:02]}  Qxa5 {[%clk 0:00:01]} 31. Nxa5 {[%clk 0:00:03]}  Bb6 {[%clk 0:00:01]} 32. c7 {[%clk 0:00:04]}  Bxc7 {[%clk 0:00:02]} 33. Rxc7 {[%clk 0:00:04]}  Rb5 {[%clk 0:00:02]} 34. Nc6 {[%clk 0:00:05]}  Rxd5 {[%clk 0:00:03]} 35. Ne7+ {[%clk 0:00:05]}  Kf7 {[%clk 0:00:01]} 36. Nxd5+ {[%clk 0:00:06]}  Ke6 {[%clk 0:00:01]} 37. Nf4+ {[%clk 0:00:06]} 1-0


[Site "https://www.chess.com"]

[Event "Titled Tuesday Blitz October 31 Late 2023"]
[White "Kovalev, Vladislav"]
[Black "Janaszak, Dawid"]
[WhiteFideId "13504398"]
[BlackFideId "1119206"]
[WhiteElo "2901"]
[BlackElo "2687"]
[Result "1-0"]
[Round "5"]
[TimeControl "180+1"]
[Date "2023.10.31"]
[WhiteClock "0:00:23"]
[BlackClock "0:00:00"]
[Board "22"]

1. e4 {[%clk 0:02:58]}  g6 {[%clk 0:03:00]} 2. d4 {[%clk 0:02:57]}  Bg7 {[%clk 0:03:00]} 3. Be3 {[%clk 0:02:56]}  d6 {[%clk 0:02:57]} 4. Qd2 {[%clk 0:02:53]}  Nd7 {[%clk 0:02:44]} 5. f4 {[%clk 0:02:51]}  c5 {[%clk 0:02:42]} 6. Nc3 {[%clk 0:02:49]}  Ngf6 {[%clk 0:02:38]} 7. dxc5 {[%clk 0:02:42]}  dxc5 {[%clk 0:02:32]} 8. Nf3 {[%clk 0:02:38]}  O-O {[%clk 0:02:30]} 9. O-O-O {[%clk 0:02:36]}  Qa5 {[%clk 0:02:05]} 10. Kb1 {[%clk 0:02:31]}  Ng4 {[%clk 0:01:47]} 11. e5 {[%clk 0:02:13]}  Nxe3 {[%clk 0:01:37]} 12. Qxe3 {[%clk 0:02:14]}  Nb6 {[%clk 0:01:31]} 13. h4 {[%clk 0:02:08]}  Bf5 {[%clk 0:01:19]} 14. Bd3 {[%clk 0:02:01]}  Bg4 {[%clk 0:01:15]} 15. h5 {[%clk 0:01:57]}  Na4 {[%clk 0:01:03]} 16. Nxa4 {[%clk 0:01:54]}  Qxa4 {[%clk 0:01:04]} 17. hxg6 {[%clk 0:01:35]}  hxg6 {[%clk 0:01:00]} 18. Rh4 {[%clk 0:01:36]}  Bxf3 {[%clk 0:00:56]} 19. gxf3 {[%clk 0:01:32]}  Rfd8 {[%clk 0:00:54]} 20. Rg1 {[%clk 0:01:29]}  c4 {[%clk 0:00:50]} 21. f5 {[%clk 0:01:28]}  Qb5 {[%clk 0:00:32]} 22. Bxc4 {[%clk 0:01:16]}  Qxe5 {[%clk 0:00:32]} 23. Qxe5 {[%clk 0:01:17]}  Bxe5 {[%clk 0:00:33]} 24. fxg6 {[%clk 0:01:17]}  e6 {[%clk 0:00:25]} 25. Re4 {[%clk 0:01:12]}  Bd4 {[%clk 0:00:20]} 26. gxf7+ {[%clk 0:01:04]}  Kxf7 {[%clk 0:00:20]} 27. Bxe6+ {[%clk 0:01:05]}  Kf6 {[%clk 0:00:20]} 28. Rh1 {[%clk 0:01:00]}  Bb6 {[%clk 0:00:18]} 29. c3 {[%clk 0:00:57]}  Rh8 {[%clk 0:00:18]} 30. Rxh8 {[%clk 0:00:53]}  Rxh8 {[%clk 0:00:18]} 31. Bg4 {[%clk 0:00:53]}  Rh2 {[%clk 0:00:17]} 32. Re6+ {[%clk 0:00:52]}  Kf7 {[%clk 0:00:16]} 33. Rd6 {[%clk 0:00:52]}  Be3 {[%clk 0:00:10]} 34. Rd7+ {[%clk 0:00:51]}  Kf6 {[%clk 0:00:10]} 35. Rxb7 {[%clk 0:00:51]}  Ke5 {[%clk 0:00:11]} 36. a4 {[%clk 0:00:49]}  Kd6 {[%clk 0:00:11]} 37. a5 {[%clk 0:00:49]}  Kc6 {[%clk 0:00:11]} 38. Rb4 {[%clk 0:00:34]}  Bc5 {[%clk 0:00:10]} 39. Rb3 {[%clk 0:00:31]}  Kd5 {[%clk 0:00:08]} 40. Ka2 {[%clk 0:00:30]}  Rf2 {[%clk 0:00:07]} 41. Bc8 {[%clk 0:00:29]}  Kc4 {[%clk 0:00:06]} 42. Be6+ {[%clk 0:00:27]}  Kd3 {[%clk 0:00:06]} 43. Bf5+ {[%clk 0:00:28]}  Kc4 {[%clk 0:00:06]} 44. Be4 {[%clk 0:00:25]}  Be3 {[%clk 0:00:04]} 45. Rb4+ {[%clk 0:00:24]}  Kc5 {[%clk 0:00:04]} 46. Rb7 {[%clk 0:00:25]}  Bc1 {[%clk 0:00:03]} 47. Kb1 {[%clk 0:00:25]}  Rf1 {[%clk 0:00:01]} 48. Kc2 {[%clk 0:00:25]}  Re1 {[%clk 0:00:02]} 49. Rxa7 {[%clk 0:00:25]}  Be3 {[%clk 0:00:02]} 50. Rb7 {[%clk 0:00:24]}  Kc4 {[%clk 0:00:03]} 51. Bd3+ {[%clk 0:00:24]}  Kc5 {[%clk 0:00:03]} 52. b4+ {[%clk 0:00:24]}  Kc6 {[%clk 0:00:02]} 53. Be4+ {[%clk 0:00:25]}  Kd6 {[%clk 0:00:03]} 54. a6 {[%clk 0:00:25]}  Bf2 {[%clk 0:00:03]} 55. Kb2 {[%clk 0:00:23]}  Re2+ {[%clk 0:00:03]} 56. Kb3 {[%clk 0:00:23]}  Re1 {[%clk 0:00:03]} 57. c4 {[%clk 0:00:22]}  Ra1 {[%clk 0:00:03]} 58. c5+ {[%clk 0:00:22]}  Ke5 {[%clk 0:00:04]} 59. a7 {[%clk 0:00:23]}  Be3 {[%clk 0:00:01]} 60. Re7+ {[%clk 0:00:23]}  Kd4 {[%clk 0:00:02]} 61. Rd7+ {[%clk 0:00:23]}  Ke5 {[%clk 0:00:00]} 62. a8=Q {[%clk 0:00:23]} 1-0


[Site "https://www.chess.com"]

[Event "Titled Tuesday Blitz October 31 Late 2023"]
[White "Kravtsiv, Martyn"]
[Black "Luczak, Filip"]
[WhiteFideId "14113147"]
[BlackFideId "1193686"]
[WhiteElo "2882"]
[BlackElo "2648"]
[Result "0-1"]
[Round "5"]
[TimeControl "180+1"]
[Date "2023.10.31"]
[WhiteClock "0:01:25"]
[BlackClock "0:01:16"]
[Board "25"]

1. e4 {[%clk 0:03:00]}  g6 {[%clk 0:02:57]} 2. d4 {[%clk 0:03:00]}  Bg7 {[%clk 0:02:57]} 3. h4 {[%clk 0:03:00]}  c5 {[%clk 0:02:57]} 4. d5 {[%clk 0:03:00]}  b5 {[%clk 0:02:58]} 5. h5 {[%clk 0:03:00]}  b4 {[%clk 0:02:54]} 6. h6 {[%clk 0:02:52]}  Bf6 {[%clk 0:02:53]} 7. g4 {[%clk 0:02:52]}  e5 {[%clk 0:02:41]} 8. f4 {[%clk 0:02:44]}  exf4 {[%clk 0:02:37]} 9. Bxf4 {[%clk 0:02:43]}  Bxb2 {[%clk 0:02:32]} 10. Nd2 {[%clk 0:02:43]}  Qf6 {[%clk 0:02:28]} 11. Nh3 {[%clk 0:02:24]}  Bxa1 {[%clk 0:02:24]} 12. Nc4 {[%clk 0:02:23]}  Qc3+ {[%clk 0:02:06]} 13. Bd2 {[%clk 0:02:19]}  Qg3+ {[%clk 0:02:04]} 14. Nf2 {[%clk 0:02:10]}  Bd4 {[%clk 0:02:02]} 15. Qe2 {[%clk 0:02:08]}  Ba6 {[%clk 0:01:58]} 16. Rh3 {[%clk 0:02:02]}  Qxf2+ {[%clk 0:01:55]} 17. Qxf2 {[%clk 0:02:02]}  Bxf2+ {[%clk 0:01:55]} 18. Kxf2 {[%clk 0:02:02]}  Bxc4 {[%clk 0:01:55]} 19. Bxc4 {[%clk 0:02:02]}  Nf6 {[%clk 0:01:55]} 20. Kf3 {[%clk 0:02:02]}  d6 {[%clk 0:01:53]} 21. Bf4 {[%clk 0:01:59]}  Ke7 {[%clk 0:01:39]} 22. e5 {[%clk 0:01:59]}  dxe5 {[%clk 0:01:32]} 23. Bxe5 {[%clk 0:02:00]}  Nbd7 {[%clk 0:01:31]} 24. d6+ {[%clk 0:02:00]}  Kd8 {[%clk 0:01:30]} 25. Bb2 {[%clk 0:01:58]}  Re8 {[%clk 0:01:26]} 26. Bxf7 {[%clk 0:01:47]}  Ne5+ {[%clk 0:01:23]} 27. Bxe5 {[%clk 0:01:37]}  Rxe5 {[%clk 0:01:24]} 28. Kf4 {[%clk 0:01:25]}  Re1 {[%clk 0:01:16]} 0-1


[Site "https://www.chess.com"]

[Event "Titled Tuesday Blitz October 31 Late 2023"]
[White "Gokerkan, Cem Kaan"]
[Black "Volkov, Maksim"]
[WhiteFideId "6336760"]
[BlackFideId "54123070"]
[WhiteElo "2859"]
[BlackElo "2645"]
[Result "1-0"]
[Round "5"]
[TimeControl "180+1"]
[Date "2023.10.31"]
[WhiteClock "0:00:03"]
[BlackClock "0:00:00"]
[Board "27"]

1. e4 {[%clk 0:02:52]}  e6 {[%clk 0:02:59]} 2. d4 {[%clk 0:02:52]}  d5 {[%clk 0:03:00]} 3. Nc3 {[%clk 0:02:50]}  Bb4 {[%clk 0:03:00]} 4. e5 {[%clk 0:02:49]}  c5 {[%clk 0:03:00]} 5. a3 {[%clk 0:02:49]}  Bxc3+ {[%clk 0:03:00]} 6. bxc3 {[%clk 0:02:50]}  Qa5 {[%clk 0:03:01]} 7. Bd2 {[%clk 0:02:50]}  Qa4 {[%clk 0:03:01]} 8. Qg4 {[%clk 0:02:44]}  Kf8 {[%clk 0:03:01]} 9. h4 {[%clk 0:02:34]}  Nc6 {[%clk 0:03:00]} 10. Nf3 {[%clk 0:02:33]}  Nge7 {[%clk 0:02:59]} 11. h5 {[%clk 0:02:33]}  h6 {[%clk 0:02:59]} 12. Be2 {[%clk 0:02:10]}  Qxc2 {[%clk 0:02:52]} 13. dxc5 {[%clk 0:02:08]}  Qe4 {[%clk 0:02:50]} 14. Rh4 {[%clk 0:01:58]}  Qxg4 {[%clk 0:02:50]} 15. Rxg4 {[%clk 0:01:59]}  f6 {[%clk 0:02:45]} 16. Bf4 {[%clk 0:01:50]}  Bd7 {[%clk 0:02:30]} 17. Rb1 {[%clk 0:01:50]}  Nd8 {[%clk 0:02:24]} 18. exf6 {[%clk 0:01:24]}  gxf6 {[%clk 0:02:25]} 19. Bd6 {[%clk 0:01:23]}  e5 {[%clk 0:01:56]} 20. Rgb4 {[%clk 0:01:23]}  Kf7 {[%clk 0:01:48]} 21. Rxb7 {[%clk 0:01:19]}  Nxb7 {[%clk 0:01:43]} 22. Rxb7 {[%clk 0:01:20]}  Ke6 {[%clk 0:01:30]} 23. Bxe7 {[%clk 0:01:18]}  Rhb8 {[%clk 0:01:30]} 24. Rxb8 {[%clk 0:01:09]}  Rxb8 {[%clk 0:01:31]} 25. Bd6 {[%clk 0:01:10]}  Rb1+ {[%clk 0:01:23]} 26. Kd2 {[%clk 0:01:11]}  Rb2+ {[%clk 0:01:23]} 27. Ke3 {[%clk 0:01:07]}  Rb3 {[%clk 0:01:23]} 28. Kd2 {[%clk 0:00:53]}  Rxa3 {[%clk 0:01:05]} 29. Nh4 {[%clk 0:00:44]}  Ra2+ {[%clk 0:01:05]} 30. Ke3 {[%clk 0:00:45]}  d4+ {[%clk 0:01:03]} 31. cxd4 {[%clk 0:00:43]}  exd4+ {[%clk 0:01:04]} 32. Kxd4 {[%clk 0:00:30]}  Rxe2 {[%clk 0:01:03]} 33. Bg3 {[%clk 0:00:27]}  Bc6 {[%clk 0:00:59]} 34. Ng6 {[%clk 0:00:27]}  Kf5 {[%clk 0:00:55]} 35. Bd6 {[%clk 0:00:16]}  Bxg2 {[%clk 0:00:31]} 36. Nh4+ {[%clk 0:00:12]}  Ke6 {[%clk 0:00:24]} 37. Nxg2 {[%clk 0:00:13]}  Rxf2 {[%clk 0:00:24]} 38. Nf4+ {[%clk 0:00:14]}  Kd7 {[%clk 0:00:25]} 39. Nd5 {[%clk 0:00:15]}  a5 {[%clk 0:00:22]} 40. Kc4 {[%clk 0:00:13]}  f5 {[%clk 0:00:18]} 41. Kb5 {[%clk 0:00:09]}  Ra2 {[%clk 0:00:16]} 42. Nb6+ {[%clk 0:00:09]}  Ke6 {[%clk 0:00:16]} 43. Bf4 {[%clk 0:00:08]}  Rf2 {[%clk 0:00:06]} 44. Bxh6 {[%clk 0:00:08]}  Rh2 {[%clk 0:00:06]} 45. c6 {[%clk 0:00:08]}  Rb2+ {[%clk 0:00:03]} 46. Kxa5 {[%clk 0:00:08]}  Rc2 {[%clk 0:00:04]} 47. Kb5 {[%clk 0:00:08]}  Rb2+ {[%clk 0:00:05]} 48. Kc5 {[%clk 0:00:08]}  Rc2+ {[%clk 0:00:04]} 49. Nc4 {[%clk 0:00:09]}  Rh2 {[%clk 0:00:05]} 50. Bf4 {[%clk 0:00:06]}  Rxh5 {[%clk 0:00:05]} 51. c7 {[%clk 0:00:06]}  Rh8 {[%clk 0:00:02]} 52. Nb6 {[%clk 0:00:06]}  Ke7 {[%clk 0:00:01]} 53. Bg5+ {[%clk 0:00:03]}  Ke6 {[%clk 0:00:00]} 54. Bd8 {[%clk 0:00:03]} 1-0


[Site "https://www.chess.com"]

[Event "Titled Tuesday Blitz October 31 Late 2023"]
[White "Kashefi, Amir Hosein"]
[Black "Kobo, Ori"]
[WhiteFideId "12557935"]
[BlackFideId "2812320"]
[WhiteElo "2593"]
[BlackElo "2812"]
[Result "0-1"]
[Round "5"]
[TimeControl "180+1"]
[Date "2023.10.31"]
[WhiteClock "0:00:00"]
[BlackClock "0:00:06"]
[Board "32"]

1. Nf3 {[%clk 0:02:49]}  Nf6 {[%clk 0:02:59]} 2. g3 {[%clk 0:02:48]}  g6 {[%clk 0:03:00]} 3. Bg2 {[%clk 0:02:46]}  Bg7 {[%clk 0:03:00]} 4. O-O {[%clk 0:02:47]}  d6 {[%clk 0:03:00]} 5. b3 {[%clk 0:02:45]}  e5 {[%clk 0:02:58]} 6. Bb2 {[%clk 0:02:46]}  O-O {[%clk 0:02:58]} 7. d3 {[%clk 0:02:43]}  Re8 {[%clk 0:02:54]} 8. Nbd2 {[%clk 0:02:43]}  Nc6 {[%clk 0:02:52]} 9. c4 {[%clk 0:02:42]}  Bd7 {[%clk 0:02:42]} 10. a3 {[%clk 0:02:42]}  a5 {[%clk 0:02:42]} 11. Qc2 {[%clk 0:02:42]}  Qc8 {[%clk 0:02:40]} 12. Rfe1 {[%clk 0:02:41]}  Bh3 {[%clk 0:02:40]} 13. Bh1 {[%clk 0:02:41]}  Qd7 {[%clk 0:02:37]} 14. Rad1 {[%clk 0:02:39]}  h6 {[%clk 0:02:35]} 15. e3 {[%clk 0:02:37]}  Rad8 {[%clk 0:02:17]} 16. Qb1 {[%clk 0:02:33]}  g5 {[%clk 0:02:10]} 17. Qa1 {[%clk 0:02:26]}  Nh7 {[%clk 0:02:03]} 18. Nf1 {[%clk 0:02:14]}  f5 {[%clk 0:01:54]} 19. d4 {[%clk 0:02:13]}  e4 {[%clk 0:01:48]} 20. N3d2 {[%clk 0:02:12]}  Bg4 {[%clk 0:01:48]} 21. d5 {[%clk 0:01:33]}  Bxb2 {[%clk 0:01:39]} 22. dxc6 {[%clk 0:01:32]}  Qg7 {[%clk 0:01:38]} 23. Qb1 {[%clk 0:01:20]}  Bxd1 {[%clk 0:01:38]} 24. Rxd1 {[%clk 0:01:15]}  bxc6 {[%clk 0:01:37]} 25. g4 {[%clk 0:00:55]}  fxg4 {[%clk 0:01:18]} 26. Bxe4 {[%clk 0:00:53]}  Be5 {[%clk 0:01:13]} 27. Bxc6 {[%clk 0:00:51]}  Rf8 {[%clk 0:01:11]} 28. Ng3 {[%clk 0:00:50]}  Bxg3 {[%clk 0:01:05]} 29. hxg3 {[%clk 0:00:48]}  Nf6 {[%clk 0:01:00]} 30. Qf5 {[%clk 0:00:45]}  Kh8 {[%clk 0:00:52]} 31. Qxa5 {[%clk 0:00:39]}  Nd7 {[%clk 0:00:45]} 32. Qxc7 {[%clk 0:00:35]}  Ne5 {[%clk 0:00:38]} 33. Qxg7+ {[%clk 0:00:31]}  Kxg7 {[%clk 0:00:39]} 34. Bd5 {[%clk 0:00:29]}  Rb8 {[%clk 0:00:25]} 35. a4 {[%clk 0:00:28]}  Nd3 {[%clk 0:00:14]} 36. Ne4 {[%clk 0:00:22]}  Rxb3 {[%clk 0:00:13]} 37. c5 {[%clk 0:00:18]}  Ra3 {[%clk 0:00:14]} 38. Nxd6 {[%clk 0:00:14]}  Nxc5 {[%clk 0:00:13]} 39. Bc6 {[%clk 0:00:07]}  Ra2 {[%clk 0:00:10]} 40. Rf1 {[%clk 0:00:04]}  Rf6 {[%clk 0:00:10]} 41. Ne8+ {[%clk 0:00:03]}  Kg6 {[%clk 0:00:10]} 42. Nxf6 {[%clk 0:00:04]}  Kxf6 {[%clk 0:00:11]} 43. Rd1 {[%clk 0:00:02]}  Nxa4 {[%clk 0:00:09]} 44. Rd6+ {[%clk 0:00:03]}  Kg7 {[%clk 0:00:09]} 45. Rd7+ {[%clk 0:00:03]}  Kf6 {[%clk 0:00:08]} 46. Rh7 {[%clk 0:00:03]}  Nc3 {[%clk 0:00:04]} 47. Rxh6+ {[%clk 0:00:03]}  Kg7 {[%clk 0:00:04]} 48. Rd6 {[%clk 0:00:01]}  Ra1+ {[%clk 0:00:04]} 49. Kg2 {[%clk 0:00:02]}  Ra2 {[%clk 0:00:04]} 50. Bd5 {[%clk 0:00:01]}  Rd2 {[%clk 0:00:04]} 51. Rd7+ {[%clk 0:00:02]}  Kf6 {[%clk 0:00:04]} 52. Be6 {[%clk 0:00:02]}  Rc2 {[%clk 0:00:04]} 53. Bxg4 {[%clk 0:00:02]}  Ne4 {[%clk 0:00:04]} 54. Rd4 {[%clk 0:00:02]}  Nxf2 {[%clk 0:00:05]} 55. Bf3 {[%clk 0:00:02]}  Ng4+ {[%clk 0:00:05]} 56. Kg1 {[%clk 0:00:01]}  Nxe3 {[%clk 0:00:05]} 57. Rd6+ {[%clk 0:00:01]}  Ke5 {[%clk 0:00:05]} 58. Ra6 {[%clk 0:00:02]}  Nf5 {[%clk 0:00:06]} 59. Ra5+ {[%clk 0:00:00]}  Kf6 {[%clk 0:00:06]} 0-1


[Site "https://www.chess.com"]